[Event "IV Elllobregat Open Chess Tmnt"]
[Site "Sant Boi de Llobregat, Spain"]
[Date "2023.12.03"]
[Round "4.41"]
[White "Fromm, Marius"]
[Black "Banos, Oscar"]
[Result "1-0"]
[TimeControl "90min/40moves + 15min/end + 30sec from move 1"]
[WhiteFideId "12993190"]
[BlackFideId "107174"]
[WhiteElo "2437"]
[BlackElo "2188"]

1. e4 {[%clk 01:30:55]} {[%emt 00:00:04]} c5 {[%clk 01:30:54]} {[%emt
00:00:06]} 2. Nf3 {[%clk 01:31:22]} {[%emt 00:00:04]} Nc6 {[%clk 01:31:13]}
{[%emt 00:00:10]} 3. Bb5 {[%clk 01:31:48]} {[%emt 00:00:04]} g6 {[%clk
01:31:10]} {[%emt 00:00:33]} 4. O-O {[%clk 01:30:55]} {[%emt 00:01:23]} Bg7
{[%clk 01:31:19]} {[%emt 00:00:21]} 5. Bxc6 {[%clk 01:30:40]} {[%emt 00:00:47]}
dxc6 {[%clk 01:31:26]} {[%emt 00:00:22]} 6. d3 {[%clk 01:31:04]} {[%emt
00:00:06]} Nf6 {[%clk 01:30:00]} {[%emt 00:01:55]} 7. h3 {[%clk 01:30:22]}
{[%emt 00:01:13]} Nd7 {[%clk 01:28:33]} {[%emt 00:01:56]} 8. Nc3 {[%clk
01:30:38]} {[%emt 00:00:15]} e5 {[%clk 01:27:41]} {[%emt 00:01:21]} 9. Be3
{[%clk 01:31:05]} {[%emt 00:00:04]} b6 {[%clk 01:27:25]} {[%emt 00:00:46]} 10.
Qd2 {[%clk 01:31:31]} {[%emt 00:00:05]} h6 {[%clk 01:27:17]} {[%emt 00:00:37]}
11. Nh2 {[%clk 01:31:28]} {[%emt 00:00:33]} Nf8 {[%clk 01:27:07]} {[%emt
00:00:39]} 12. f4 {[%clk 01:31:55]} {[%emt 00:00:04]} exf4 {[%clk 01:27:23]}
{[%emt 00:00:13]} 13. Bxf4 {[%clk 01:32:11]} {[%emt 00:00:15]} Ne6 {[%clk
01:27:35]} {[%emt 00:00:17]} 14. Be3 {[%clk 01:32:39]} {[%emt 00:00:03]} c4
{[%clk 01:26:42]} {[%emt 00:01:23]} 15. Qf2 {[%clk 01:18:26]} {[%emt 00:14:43]}
O-O {[%clk 01:26:14]} {[%emt 00:00:57]} 16. dxc4 {[%clk 01:17:30]} {[%emt
00:01:26]} h5 {[%clk 01:25:52]} {[%emt 00:00:52]} 17. Nf3 {[%clk 01:09:59]}
{[%emt 00:08:01]} Ba6 {[%clk 01:25:21]} {[%emt 00:01:01]} 18. e5 {[%clk
01:06:18]} {[%emt 00:04:12]} Bxc4 {[%clk 01:22:36]} {[%emt 00:03:14]} 19. Rfd1
{[%clk 01:06:45]} {[%emt 00:00:04]} Qe7 {[%clk 01:21:11]} {[%emt 00:01:53]} 20.
b3 {[%clk 00:59:26]} {[%emt 00:07:51]} Ba6 {[%clk 01:20:53]} {[%emt 00:00:48]}
21. Ne4 {[%clk 00:59:48]} {[%emt 00:00:08]} Rad8 {[%clk 01:12:25]} {[%emt
00:08:58]} 22. c4 {[%clk 00:51:57]} {[%emt 00:08:22]} Rxd1+ {[%clk 00:48:44]}
{[%emt 00:24:11]} 23. Rxd1 {[%clk 00:52:18]} {[%emt 00:00:09]} Rd8 {[%clk
00:49:07]} {[%emt 00:00:06]} 24. Rd6 {[%clk 00:44:28]} {[%emt 00:08:20]} Rxd6
{[%clk 00:40:34]} {[%emt 00:09:04]} 25. exd6 {[%clk 00:43:54]} {[%emt
00:01:03]} Qd7 {[%clk 00:40:18]} {[%emt 00:00:45]} 26. Qh4 {[%clk 00:22:44]}
{[%emt 00:21:40]} Kf8 {[%clk 00:33:06]} {[%emt 00:07:43]} 27. c5 {[%clk
00:14:15]} {[%emt 00:08:59]} f5 {[%clk 00:17:33]} {[%emt 00:16:02]} 28. Nf6
{[%clk 00:14:08]} {[%emt 00:00:38]} Qd8 {[%clk 00:16:11]} {[%emt 00:01:52]} 29.
Ng5 {[%clk 00:13:28]} {[%emt 00:01:10]} Bc8 {[%clk 00:14:37]} {[%emt 00:02:03]}
30. Qc4 {[%clk 00:11:54]} {[%emt 00:02:05]} Bxf6 {[%clk 00:11:29]} {[%emt
00:03:38]} 31. Nxe6+ {[%clk 00:12:19]} {[%emt 00:00:05]} Bxe6 {[%clk 00:11:54]}
{[%emt 00:00:05]} 32. Qxe6 {[%clk 00:12:45]} {[%emt 00:00:04]} Kg7 {[%clk
00:10:59]} {[%emt 00:01:24]} 33. d7 {[%clk 00:11:55]} {[%emt 00:01:21]} bxc5
{[%clk 00:10:22]} {[%emt 00:01:07]} 34. Bxc5 {[%clk 00:12:02]} {[%emt
00:00:23]} Qa5 {[%clk 00:09:43]} {[%emt 00:01:08]} 35. Bf8+ {[%clk 00:12:04]}
{[%emt 00:00:29]} 1-0

[Event "IV Elllobregat Open Chess Tmnt"]
[Site "Sant Boi de Llobregat, Spain"]
[Date "2023.12.03"]
[Round "4.42"]
[White "Dukic, Zachary"]
[Black "Kochavi, Ori"]
[Result "0-1"]
[TimeControl "90min/40moves + 15min/end + 30sec from move 1"]
[WhiteFideId "2617188"]
[BlackFideId "2816873"]
[WhiteElo "2233"]
[BlackElo "2430"]

1. e4 {[%clk 01:30:53]} {[%emt 00:00:06]} c6 {[%clk 01:30:55]} {[%emt
00:00:06]} 2. d4 {[%clk 01:31:17]} {[%emt 00:00:06]} d5 {[%clk 01:31:19]}
{[%emt 00:00:04]} 3. e5 {[%clk 01:31:43]} {[%emt 00:00:06]} Bf5 {[%clk
01:31:45]} {[%emt 00:00:03]} 4. Nf3 {[%clk 01:32:07]} {[%emt 00:00:07]} e6
{[%clk 01:32:10]} {[%emt 00:00:05]} 5. Be2 {[%clk 01:32:31]} {[%emt 00:00:06]}
Bg6 {[%clk 01:29:34]} {[%emt 00:03:06]} 6. O-O {[%clk 01:32:43]} {[%emt
00:00:18]} Ne7 {[%clk 01:29:50]} {[%emt 00:00:15]} 7. c3 {[%clk 01:33:00]}
{[%emt 00:00:13]} Nf5 {[%clk 01:29:26]} {[%emt 00:00:53]} 8. g4 {[%clk
01:33:22]} {[%emt 00:00:07]} Nh6 {[%clk 01:23:14]} {[%emt 00:06:43]} 9. Ng5
{[%clk 01:33:42]} {[%emt 00:00:10]} c5 {[%clk 01:01:53]} {[%emt 00:21:52]} 10.
f4 {[%clk 01:31:48]} {[%emt 00:02:23]} Qb6 {[%clk 00:56:06]} {[%emt 00:06:17]}
11. Na3 {[%clk 00:50:22]} {[%emt 00:41:57]} Nc6 {[%clk 00:41:22]} {[%emt
00:15:14]} 12. Be3 {[%clk 00:48:11]} {[%emt 00:02:40]} a6 {[%clk 00:41:33]}
{[%emt 00:00:19]} 13. Nc2 {[%clk 00:35:31]} {[%emt 00:13:09]} Be7 {[%clk
00:26:05]} {[%emt 00:15:59]} 14. h4 {[%clk 00:34:18]} {[%emt 00:01:43]} Qxb2
{[%clk 00:21:10]} {[%emt 00:05:25]} 15. f5 {[%clk 00:33:28]} {[%emt 00:01:20]}
exf5 {[%clk 00:21:37]} {[%emt 00:00:04]} 16. Rb1 {[%clk 00:26:53]} {[%emt
00:07:04]} Qxa2 {[%clk 00:21:50]} {[%emt 00:00:17]} 17. h5 {[%clk 00:27:01]}
{[%emt 00:00:22]} f4 {[%clk 00:22:17]} {[%emt 00:00:04]} 18. hxg6 {[%clk
00:26:21]} {[%emt 00:01:09]} Bxg5 {[%clk 00:22:30]} {[%emt 00:00:17]} 19. gxf7+
{[%clk 00:24:13]} {[%emt 00:02:38]} Nxf7 {[%clk 00:22:54]} {[%emt 00:00:05]} 20.
Bxf4 {[%clk 00:18:26]} {[%emt 00:06:17]} Bxf4 {[%clk 00:18:25]} {[%emt
00:05:00]} 21. Rxf4 {[%clk 00:18:46]} {[%emt 00:00:10]} O-O {[%clk 00:18:26]}
{[%emt 00:00:29]} 22. Ne3 {[%clk 00:17:16]} {[%emt 00:02:00]} cxd4 {[%clk
00:18:15]} {[%emt 00:00:41]} 23. cxd4 {[%clk 00:17:01]} {[%emt 00:00:45]} Ng5
{[%clk 00:18:22]} {[%emt 00:00:22]} 24. Ra1 {[%clk 00:11:31]} {[%emt 00:06:01]}
Qb2 {[%clk 00:16:19]} {[%emt 00:02:33]} 25. Rb1 {[%clk 00:10:07]} {[%emt
00:01:54]} Qa3 {[%clk 00:14:41]} {[%emt 00:02:08]} 26. Rb3 {[%clk 00:09:43]}
{[%emt 00:00:53]} Qa2 {[%clk 00:14:21]} {[%emt 00:00:52]} 27. Nxd5 {[%clk
00:08:10]} {[%emt 00:02:03]} Rxf4 {[%clk 00:12:03]} {[%emt 00:02:48]} 28. Nxf4
{[%clk 00:08:38]} {[%emt 00:00:01]} Nxd4 {[%clk 00:12:27]} {[%emt 00:00:06]} 29.
Bc4+ {[%clk 00:03:30]} {[%emt 00:05:38]} Kh8 {[%clk 00:12:54]} {[%emt
00:00:03]} 30. Rc3 {[%clk 00:03:04]} {[%emt 00:00:56]} Ndf3+ {[%clk 00:07:03]}
{[%emt 00:06:21]} 31. Kf1 {[%clk 00:01:43]} {[%emt 00:01:51]} Nd2+ {[%clk
00:06:43]} {[%emt 00:00:50]} 32. Kg1 {[%clk 00:01:50]} {[%emt 00:00:23]} Nxc4
{[%clk 00:07:06]} {[%emt 00:00:08]} 33. Qd4 {[%clk 00:01:21]} {[%emt 00:00:58]}
Nd2 {[%clk 00:06:35]} {[%emt 00:01:01]} 0-1

[Event "IV Elllobregat Open Chess Tmnt"]
[Site "Sant Boi de Llobregat, Spain"]
[Date "2023.12.03"]
[Round "4.43"]
[White "Kamalidenova, Meruert"]
[Black "Peralta, Fernando"]
[Result "0-1"]
[TimeControl "90min/40moves + 15min/end + 30sec from move 1"]
[WhiteFideId "13712802"]
[BlackFideId "105309"]
[WhiteElo "2359"]
[BlackElo "2580"]

1. e4 {[%clk 01:30:56]} {[%emt 00:00:03]} c6 {[%clk 01:29:32]} {[%emt
00:01:29]} 2. d4 {[%clk 01:31:18]} {[%emt 00:00:07]} d5 {[%clk 01:29:58]}
{[%emt 00:00:04]} 3. Nd2 {[%clk 01:31:44]} {[%emt 00:00:05]} dxe4 {[%clk
01:30:03]} {[%emt 00:00:24]} 4. Nxe4 {[%clk 01:32:08]} {[%emt 00:00:06]} Nf6
{[%clk 01:30:29]} {[%emt 00:00:05]} 5. Nxf6+ {[%clk 01:32:33]} {[%emt
00:00:05]} exf6 {[%clk 01:30:56]} {[%emt 00:00:03]} 6. c3 {[%clk 01:32:58]}
{[%emt 00:00:05]} Bd6 {[%clk 01:31:16]} {[%emt 00:00:09]} 7. Bd3 {[%clk
01:33:17]} {[%emt 00:00:11]} O-O {[%clk 01:31:35]} {[%emt 00:00:11]} 8. Qc2
{[%clk 01:33:41]} {[%emt 00:00:07]} Re8+ {[%clk 01:31:55]} {[%emt 00:00:09]} 9.
Ne2 {[%clk 01:34:06]} {[%emt 00:00:05]} h6 {[%clk 01:32:14]} {[%emt 00:00:12]}
10. O-O {[%clk 01:33:50]} {[%emt 00:00:46]} Nd7 {[%clk 01:32:12]} {[%emt
00:00:32]} 11. Bf4 {[%clk 01:33:31]} {[%emt 00:00:48]} Nf8 {[%clk 01:31:33]}
{[%emt 00:01:10]} 12. Bxd6 {[%clk 01:33:14]} {[%emt 00:00:47]} Qxd6 {[%clk
01:31:58]} {[%emt 00:00:04]} 13. Rfe1 {[%clk 01:32:41]} {[%emt 00:01:03]} Be6
{[%clk 01:24:00]} {[%emt 00:08:29]} 14. Ng3 {[%clk 01:31:48]} {[%emt 00:01:23]}
g6 {[%clk 01:20:13]} {[%emt 00:04:17]} 15. Ne4 {[%clk 01:29:42]} {[%emt
00:02:36]} Qd8 {[%clk 01:20:33]} {[%emt 00:00:10]} 16. h3 {[%clk 01:29:08]}
{[%emt 00:01:03]} b6 {[%clk 01:16:52]} {[%emt 00:04:12]} 17. Re2 {[%clk
01:25:43]} {[%emt 00:03:54]} Kg7 {[%clk 01:05:30]} {[%emt 00:11:52]} 18. Nd2
{[%clk 01:22:54]} {[%emt 00:03:19]} Qd7 {[%clk 01:04:23]} {[%emt 00:01:37]} 19.
Rae1 {[%clk 01:22:29]} {[%emt 00:00:55]} Rad8 {[%clk 01:01:47]} {[%emt
00:03:06]} 20. Qa4 {[%clk 01:16:40]} {[%emt 00:06:20]} h5 {[%clk 01:00:33]}
{[%emt 00:01:44]} 21. Be4 {[%clk 01:14:24]} {[%emt 00:02:45]} Rc8 {[%clk
00:59:13]} {[%emt 00:01:51]} 22. Bf3 {[%clk 01:13:26]} {[%emt 00:01:27]} h4
{[%clk 00:55:50]} {[%emt 00:03:54]} 23. Nf1 {[%clk 01:09:27]} {[%emt 00:04:28]}
b5 {[%clk 00:51:40]} {[%emt 00:04:41]} 24. Qb4 {[%clk 01:07:24]} {[%emt
00:02:33]} Nh7 {[%clk 00:49:55]} {[%emt 00:02:14]} 25. Re3 {[%clk 01:00:37]}
{[%emt 00:07:17]} Ng5 {[%clk 00:48:32]} {[%emt 00:01:53]} 26. Nd2 {[%clk
00:59:58]} {[%emt 00:01:09]} c5 {[%clk 00:45:36]} {[%emt 00:03:27]} 27. Qa5
{[%clk 00:58:14]} {[%emt 00:02:14]} cxd4 {[%clk 00:44:54]} {[%emt 00:01:12]} 28.
cxd4 {[%clk 00:57:41]} {[%emt 00:01:03]} Qxd4 {[%clk 00:44:02]} {[%emt
00:01:21]} 29. Nb3 {[%clk 00:54:41]} {[%emt 00:03:30]} Nxf3+ {[%clk 00:39:03]}
{[%emt 00:05:29]} 30. Rxf3 {[%clk 00:53:14]} {[%emt 00:01:58]} Bxb3 {[%clk
00:37:27]} {[%emt 00:02:06]} 31. Rxb3 {[%clk 00:53:33]} {[%emt 00:00:10]} Rc2
{[%clk 00:34:45]} {[%emt 00:03:12]} 32. Rf1 {[%clk 00:52:03]} {[%emt 00:02:01]}
Ree2 {[%clk 00:34:34]} {[%emt 00:00:41]} 33. Rf3 {[%clk 00:52:28]} {[%emt
00:00:05]} Rxb2 {[%clk 00:34:22]} {[%emt 00:00:42]} 34. a3 {[%clk 00:52:53]}
{[%emt 00:00:05]} Red2 {[%clk 00:31:37]} {[%emt 00:03:14]} 35. Qc3 {[%clk
00:49:11]} {[%emt 00:04:12]} Qxc3 {[%clk 00:30:48]} {[%emt 00:01:19]} 36. Rxc3
{[%clk 00:49:36]} {[%emt 00:00:05]} a5 {[%clk 00:30:48]} {[%emt 00:00:31]} 37.
Re3 {[%clk 00:49:58]} {[%emt 00:00:07]} a4 {[%clk 00:30:18]} {[%emt 00:01:00]}
0-1

[Event "IV Elllobregat Open Chess Tmnt"]
[Site "Sant Boi de Llobregat, Spain"]
[Date "2023.12.03"]
[Round "4.44"]
[White "Sankalp, Gupta"]
[Black "Sattarov, Bobir"]
[Result "1-0"]
[TimeControl "90min/40moves + 15min/end + 30sec from move 1"]
[WhiteFideId "5097010"]
[BlackFideId "14203081"]
[WhiteElo "2523"]
[BlackElo "2353"]

1. e4 {[%clk 01:30:26]} {[%emt 00:00:33]} e5 {[%clk 01:30:20]} {[%emt
00:00:40]} 2. Nf3 {[%clk 01:30:53]} {[%emt 00:00:03]} Nc6 {[%clk 01:30:42]}
{[%emt 00:00:08]} 3. Bb5 {[%clk 01:31:18]} {[%emt 00:00:05]} a6 {[%clk
01:30:43]} {[%emt 00:00:30]} 4. Ba4 {[%clk 01:31:46]} {[%emt 00:00:02]} Nf6
{[%clk 01:30:23]} {[%emt 00:00:50]} 5. O-O {[%clk 01:32:11]} {[%emt 00:00:05]}
Nxe4 {[%clk 01:29:35]} {[%emt 00:01:18]} 6. d4 {[%clk 01:32:36]} {[%emt
00:00:04]} b5 {[%clk 01:29:59]} {[%emt 00:00:07]} 7. Bb3 {[%clk 01:33:02]}
{[%emt 00:00:04]} d5 {[%clk 01:30:24]} {[%emt 00:00:05]} 8. dxe5 {[%clk
01:33:27]} {[%emt 00:00:05]} Be6 {[%clk 01:30:49]} {[%emt 00:00:05]} 9. c3
{[%clk 01:33:44]} {[%emt 00:00:13]} Bc5 {[%clk 01:29:25]} {[%emt 00:01:53]} 10.
Nbd2 {[%clk 01:33:55]} {[%emt 00:00:19]} O-O {[%clk 01:29:47]} {[%emt
00:00:08]} 11. Bc2 {[%clk 01:34:20]} {[%emt 00:00:06]} Nxf2 {[%clk 01:29:49]}
{[%emt 00:00:28]} 12. Rxf2 {[%clk 01:34:47]} {[%emt 00:00:03]} f6 {[%clk
01:30:10]} {[%emt 00:00:08]} 13. Nf1 {[%clk 01:35:09]} {[%emt 00:00:08]} Bxf2+
{[%clk 01:30:28]} {[%emt 00:00:13]} 14. Kxf2 {[%clk 01:35:37]} {[%emt
00:00:03]} fxe5 {[%clk 01:30:48]} {[%emt 00:00:09]} 15. Kg1 {[%clk 01:36:03]}
{[%emt 00:00:04]} Qd7 {[%clk 01:28:59]} {[%emt 00:02:19]} 16. a4 {[%clk
01:36:30]} {[%emt 00:00:03]} Rad8 {[%clk 01:19:43]} {[%emt 00:09:46]} 17. Bg5
{[%clk 01:29:55]} {[%emt 00:07:04]} Rde8 {[%clk 01:17:28]} {[%emt 00:02:46]} 18.
Bh4 {[%clk 01:26:48]} {[%emt 00:03:36]} e4 {[%clk 01:16:52]} {[%emt 00:01:07]}
19. Nd4 {[%clk 01:25:50]} {[%emt 00:01:28]} Bg4 {[%clk 01:16:57]} {[%emt
00:00:25]} 20. Qc1 {[%clk 01:13:55]} {[%emt 00:12:25]} Ne5 {[%clk 01:11:07]}
{[%emt 00:06:20]} 21. b4 {[%clk 01:13:18]} {[%emt 00:01:07]} Be2 {[%clk
01:05:47]} {[%emt 00:05:49]} 22. Nxe2 {[%clk 00:52:13]} {[%emt 00:21:35]} Qg4
{[%clk 01:05:13]} {[%emt 00:01:05]} 23. Qd1 {[%clk 00:52:19]} {[%emt 00:00:24]}
Qxh4 {[%clk 00:32:35]} {[%emt 00:33:08]} 24. Qxd5+ {[%clk 00:52:42]} {[%emt
00:00:07]} Kh8 {[%clk 00:32:59]} {[%emt 00:00:06]} 25. Qd4 {[%clk 00:53:04]}
{[%emt 00:00:07]} Ng4 {[%clk 00:25:00]} {[%emt 00:08:30]} 26. h3 {[%clk
00:49:00]} {[%emt 00:04:34]} Rd8 {[%clk 00:22:35]} {[%emt 00:02:56]} 27. Qc5
{[%clk 00:49:01]} {[%emt 00:00:28]} Rf2 {[%clk 00:21:45]} {[%emt 00:01:20]} 28.
Nfg3 {[%clk 00:40:17]} {[%emt 00:09:13]} e3 {[%clk 00:21:07]} {[%emt 00:01:08]}
29. Re1 {[%clk 00:33:50]} {[%emt 00:06:57]} Rd2 {[%clk 00:12:35]} {[%emt
00:09:02]} 30. Bf5 {[%clk 00:28:11]} {[%emt 00:06:09]} Kg8 {[%clk 00:07:23]}
{[%emt 00:05:43]} 31. Be6+ {[%clk 00:22:46]} {[%emt 00:05:54]} Kh8 {[%clk
00:07:51]} {[%emt 00:00:02]} 32. Qc6 {[%clk 00:22:56]} {[%emt 00:00:20]} g6
{[%clk 00:03:24]} {[%emt 00:04:57]} 33. Bxg4 {[%clk 00:21:20]} {[%emt
00:02:06]} Rfxe2 {[%clk 00:01:15]} {[%emt 00:02:39]} 34. Rxe2 {[%clk 00:21:33]}
{[%emt 00:00:17]} Qxg3 {[%clk 00:01:32]} {[%emt 00:00:13]} 35. Qf6+ {[%clk
00:22:02]} {[%emt 00:00:02]} 1-0

[Event "IV Elllobregat Open Chess Tmnt"]
[Site "Sant Boi de Llobregat, Spain"]
[Date "2023.12.03"]
[Round "4.45"]
[White "Jerez Perez, Alfonso"]
[Black "Samadov, Read"]
[Result "0-1"]
[TimeControl "90min/40moves + 15min/end + 30sec from move 1"]
[WhiteFideId "2204100"]
[BlackFideId "13417444"]
[WhiteElo "2350"]
[BlackElo "2506"]

1. e4 {[%clk 01:30:56]} {[%emt 00:00:04]} c5 {[%clk 01:30:54]} {[%emt
00:00:07]} 2. c3 {[%clk 01:31:19]} {[%emt 00:00:07]} d5 {[%clk 01:31:19]}
{[%emt 00:00:04]} 3. exd5 {[%clk 01:31:42]} {[%emt 00:00:08]} Nf6 {[%clk
01:31:43]} {[%emt 00:00:06]} 4. d4 {[%clk 01:31:33]} {[%emt 00:00:39]} Nxd5
{[%clk 01:31:52]} {[%emt 00:00:20]} 5. Nf3 {[%clk 01:31:26]} {[%emt 00:00:38]}
cxd4 {[%clk 01:31:30]} {[%emt 00:00:51]} 6. Nxd4 {[%clk 01:29:00]} {[%emt
00:02:57]} e5 {[%clk 01:29:53]} {[%emt 00:02:06]} 7. Nf3 {[%clk 01:28:18]}
{[%emt 00:01:12]} Nc6 {[%clk 01:15:26]} {[%emt 00:14:57]} 8. Bc4 {[%clk
01:24:50]} {[%emt 00:03:59]} Be6 {[%clk 01:10:09]} {[%emt 00:05:47]} 9. Qe2
{[%clk 01:10:36]} {[%emt 00:14:43]} f6 {[%clk 01:05:02]} {[%emt 00:05:37]} 10.
O-O {[%clk 01:07:19]} {[%emt 00:03:47]} Qd7 {[%clk 01:02:15]} {[%emt 00:03:16]}
11. a4 {[%clk 00:45:38]} {[%emt 00:22:12]} Be7 {[%clk 00:52:54]} {[%emt
00:09:51]} 12. Be3 {[%clk 00:37:19]} {[%emt 00:08:49]} O-O {[%clk 00:48:11]}
{[%emt 00:05:13]} 13. Nbd2 {[%clk 00:35:01]} {[%emt 00:02:49]} Rfd8 {[%clk
00:44:59]} {[%emt 00:03:41]} 14. Rfd1 {[%clk 00:34:18]} {[%emt 00:01:14]} Qe8
{[%clk 00:42:41]} {[%emt 00:02:47]} 15. Ne4 {[%clk 00:31:03]} {[%emt 00:03:46]}
Qg6 {[%clk 00:38:57]} {[%emt 00:04:12]} 16. Nc5 {[%clk 00:26:04]} {[%emt
00:05:30]} Bxc5 {[%clk 00:37:54]} {[%emt 00:01:33]} 17. Bxc5 {[%clk 00:26:32]}
{[%emt 00:00:03]} Kh8 {[%clk 00:32:31]} {[%emt 00:05:53]} 18. Be3 {[%clk
00:20:49]} {[%emt 00:06:13]} Rd7 {[%clk 00:24:57]} {[%emt 00:08:03]} 19. Bxd5
{[%clk 00:11:09]} {[%emt 00:10:10]} Bxd5 {[%clk 00:22:00]} {[%emt 00:03:26]} 20.
c4 {[%clk 00:10:56]} {[%emt 00:00:44]} Be6 {[%clk 00:21:26]} {[%emt 00:01:03]}
21. Rxd7 {[%clk 00:11:21]} {[%emt 00:00:07]} Bxd7 {[%clk 00:21:49]} {[%emt
00:00:06]} 22. Ne1 {[%clk 00:11:14]} {[%emt 00:00:37]} e4 {[%clk 00:16:23]}
{[%emt 00:05:57]} 23. Qc2 {[%clk 00:09:20]} {[%emt 00:02:23]} Ne5 {[%clk
00:14:02]} {[%emt 00:02:51]} 24. Bf4 {[%clk 00:08:59]} {[%emt 00:00:52]} Nd3
{[%clk 00:13:38]} {[%emt 00:00:52]} 25. Nxd3 {[%clk 00:09:24]} {[%emt
00:00:06]} exd3 {[%clk 00:14:04]} {[%emt 00:00:04]} 26. Qd2 {[%clk 00:09:52]}
{[%emt 00:00:02]} Bc6 {[%clk 00:13:53]} {[%emt 00:00:40]} 27. Bg3 {[%clk
00:10:17]} {[%emt 00:00:06]} Re8 {[%clk 00:13:20]} {[%emt 00:01:03]} 28. h4
{[%clk 00:09:36]} {[%emt 00:01:11]} Re2 {[%clk 00:12:11]} {[%emt 00:01:38]} 29.
Qb4 {[%emt 00:00:52]} h5 {[%clk 00:11:53]} 30. c5 {[%clk 00:10:11]} {[%emt
00:00:23]} d2 {[%clk 00:11:05]} {[%emt 00:01:17]} 31. Qc3 {[%clk 00:08:16]}
{[%emt 00:02:25]} Qe4 {[%clk 00:07:30]} {[%emt 00:04:04]} 32. f3 {[%clk
00:08:42]} {[%emt 00:00:05]} Qd5 {[%clk 00:07:27]} {[%emt 00:00:31]} 0-1

[Event "IV Elllobregat Open Chess Tmnt"]
[Site "Sant Boi de Llobregat, Spain"]
[Date "2023.12.03"]
[Round "4.46"]
[White "Lopez Martinez, Josep Manuel"]
[Black "Mathieu, Phileas"]
[Result "1-0"]
[TimeControl "90min/40moves + 15min/end + 30sec from move 1"]
[WhiteFideId "2212943"]
[BlackFideId "36048410"]
[WhiteElo "2474"]
[BlackElo "2346"]

1. d4 {[%clk 01:26:24]} {[%emt 00:04:34]} d5 {[%clk 01:30:56]} {[%emt
00:00:05]} 2. c4 {[%clk 01:26:12]} {[%emt 00:00:42]} c6 {[%clk 01:31:24]}
{[%emt 00:00:02]} 3. Nf3 {[%clk 01:25:37]} {[%emt 00:01:05]} Nf6 {[%clk
01:31:49]} {[%emt 00:00:05]} 4. e3 {[%clk 01:24:01]} {[%emt 00:02:05]} e6
{[%clk 01:31:34]} {[%emt 00:00:47]} 5. b3 {[%clk 01:23:48]} {[%emt 00:00:42]}
Nbd7 {[%clk 01:31:52]} {[%emt 00:00:13]} 6. Bb2 {[%clk 01:23:49]} {[%emt
00:00:29]} Bd6 {[%clk 01:32:11]} {[%emt 00:00:11]} 7. Bd3 {[%clk 01:21:46]}
{[%emt 00:02:32]} O-O {[%clk 01:28:57]} {[%emt 00:03:45]} 8. Nbd2 {[%clk
01:21:16]} {[%emt 00:01:00]} b6 {[%clk 01:25:13]} {[%emt 00:04:14]} 9. O-O
{[%clk 01:17:42]} {[%emt 00:04:03]} Qc7 {[%clk 01:23:02]} {[%emt 00:02:42]} 10.
Rc1 {[%clk 01:16:39]} {[%emt 00:01:32]} Bb7 {[%clk 01:23:02]} {[%emt 00:00:32]}
11. Qc2 {[%clk 01:10:53]} {[%emt 00:06:14]} h6 {[%clk 01:18:45]} {[%emt
00:04:48]} 12. a3 {[%clk 01:07:40]} {[%emt 00:03:42]} Rae8 {[%clk 01:16:47]}
{[%emt 00:02:29]} 13. b4 {[%clk 01:07:04]} {[%emt 00:01:05]} Qb8 {[%clk
01:15:03]} {[%emt 00:02:14]} 14. c5 {[%clk 01:03:54]} {[%emt 00:03:40]} Bc7
{[%clk 01:15:15]} {[%emt 00:00:19]} 15. e4 {[%clk 01:00:21]} {[%emt 00:04:01]}
bxc5 {[%clk 01:07:39]} {[%emt 00:08:08]} 16. dxc5 {[%clk 00:58:25]} {[%emt
00:02:25]} Ne5 {[%clk 01:07:51]} {[%emt 00:00:18]} 17. Bxe5 {[%clk 00:56:33]}
{[%emt 00:02:22]} Bxe5 {[%clk 01:08:16]} {[%emt 00:00:06]} 18. Nxe5 {[%clk
00:56:52]} {[%emt 00:00:11]} Qxe5 {[%clk 01:08:35]} {[%emt 00:00:11]} 19. Rfe1
{[%clk 00:56:25]} {[%emt 00:00:56]} Qc7 {[%clk 00:57:39]} {[%emt 00:11:27]} 20.
e5 {[%clk 00:52:35]} {[%emt 00:04:19]} Nd7 {[%clk 00:58:07]} {[%emt 00:00:03]}
21. Nf3 {[%clk 00:52:49]} {[%emt 00:00:15]} f6 {[%clk 00:58:00]} {[%emt
00:00:38]} 22. Bg6 {[%clk 00:48:13]} {[%emt 00:05:05]} fxe5 {[%clk 00:55:41]}
{[%emt 00:02:50]} 23. Bxe8 {[%clk 00:48:14]} {[%emt 00:00:29]} Rxe8 {[%clk
00:56:10]} {[%emt 00:00:01]} 24. Qg6 {[%clk 00:48:14]} {[%emt 00:00:29]} Re7
{[%clk 00:56:19]} {[%emt 00:00:22]} 25. Qg3 {[%clk 00:48:14]} {[%emt 00:00:29]}
1-0